fUSD/lending_fUSD_20250905
["ID","MTS","AMOUNT","RATE_DAILY","PERIOD"]
[383626863,1757045477468,-500.0,0.00027883,15]
[383626864,1757045477477,-150.0,0.00027899,2]
[383626865,1757045477485,-3800.0,0.000279,10]
[383626866,1757045477494,-400.0,0.00027911,2]
[383626867,1757045477503,-490.72,0.00027911,2]
[383626868,1757045477511,-400.0,0.00027911,2]
[383626869,1757045477519,-400.0,0.00027911,2]
[383626870,1757045477527,-400.0,0.00027911,2]
[383626871,1757045477537,-1135.87,0.00027911,2]
[383626872,1757045477545,-553.22,0.00027911,2]
[383626873,1757045477554,-400.0,0.00027911,2]
[383626874,1757045477567,-659.02,0.00027911,2]
[383626875,1757045477575,-693.59,0.00027911,2]
[383626876,1757045477584,-1013.01,0.00027911,2]
[383626877,1757045477594,-400.0,0.00027911,2]
[383626878,1757045477603,-361.7858833,0.00027911,2]
[383626879,1757045477612,-400.0,0.00027922,2]
[383626880,1757045477621,-400.0,0.00027922,2]
[383626881,1757045477629,-1421.9136881,0.00027925,2]
[383626882,1757045477641,-400.0,0.00027944,2]
[383626883,1757045477651,-2614.78,0.00027944,2]
[383626884,1757045477661,-323.61147855,0.00027944,2]
[383626885,1757045477671,-201.81889512,0.00027945,14]
[383626886,1757045477681,-500.0,0.00027945,2]
[383626887,1757045477690,-400.0,0.00027945,2]
[383626888,1757045477699,-400.0,0.00027945,2]
[383626889,1757045477707,-400.0,0.00027945,2]
[383626890,1757045477716,-577.81,0.00027945,2]
[383626891,1757045477725,-1340.23,0.00027945,2]
[383626892,1757045477734,-400.0,0.00027945,2]
[383626893,1757045477743,-828.84,0.00027945,2]
[383626894,1757045477753,-400.0,0.00027945,2]
[383626895,1757045477762,-1218.03,0.00027945,2]
[383626896,1757045477771,-701.33,0.00027945,2]
[383626897,1757045477780,-400.0,0.00027945,2]
[383626898,1757045477789,-400.0,0.00027945,2]
[383626899,1757045477798,-400.0,0.00027945,2]
[383626900,1757045477807,-400.0,0.00027945,2]
[383626901,1757045477816,-424.56,0.00027945,2]
[383626902,1757045477825,-438.15735813,0.00027945,2]
[383626903,1757045477834,-400.0,0.00027945,2]
[383626904,1757045477843,-575.41,0.00027945,2]
[383626905,1757045477852,-3097.05,0.00027945,2]
[383626906,1757045477861,-339.26714168,0.00027945,2]
[383626907,1757045477869,-250.0,0.00027945,5]
[383626908,1757045477879,-3991.64451425,0.00027988,8]
[383626909,1757045477886,-200.0,0.00028,5]
[383626910,1757045477893,-883.64,0.00028,7]
[383626911,1757045477900,-4401.44,0.00028,7]
[383626912,1757045477906,-2453.45,0.00028,7]
[383626913,1757045477914,-880.28,0.00028,7]
[383626914,1757045477922,-408.91,0.00028,7]
[383626915,1757045477929,-1767.28,0.00028,7]
[383626916,1757045477936,-1767.29,0.00028,7]
[383626917,1757045477944,-500.0,0.0002801,14]
[383626918,1757045477950,-7770.57536155,0.00028042,30]
[383626919,1757045477958,-287.61899177,0.00028059,2]
[383626920,1757045477965,-400.0,0.00028086,2]
[383626921,1757045477971,-400.0,0.00028086,2]
[383626922,1757045477978,-400.0,0.00028086,2]
[383626923,1757045477987,-400.0,0.00028086,2]
[383626924,1757045477997,-221.05520096,0.00028086,2]
[383626925,1757045478006,-302.68001178,0.00028086,2]
[383626926,1757045478016,-400.0,0.00028086,2]
[383626927,1757045478026,-264.40031638,0.00028086,2]
[383626928,1757045478036,-400.0,0.00028086,2]
[383626929,1757045478045,-434.59,0.00028086,2]
[383626930,1757045478055,-400.0,0.00028086,2]
[383626931,1757045478064,-2332.0,0.00028098,2]
[383626932,1757045478074,-264.0,0.0002815,2]
[383626933,1757045478084,-151.0,0.00028153,2]
[383626934,1757045478093,-500.0,0.00028157,15]
[383626935,1757045478103,-400.0,0.00028185,2]
[383626936,1757045478112,-490.72,0.00028185,2]
[383626937,1757045478121,-405.4470641,0.00028185,2]
[383626938,1757045478131,-400.0,0.00028185,2]
[383626939,1757045478140,-400.0,0.00028185,2]
[383626940,1757045478149,-1135.87,0.00028185,2]
[383626941,1757045478159,-553.22,0.00028185,2]
[383626942,1757045478168,-400.0,0.00028185,2]
[383626943,1757045478178,-693.59,0.00028185,2]
[383626944,1757045478187,-659.02,0.00028185,2]
[383626945,1757045478197,-1013.01,0.00028185,2]
[383626946,1757045478207,-400.0,0.00028185,2]
[383626947,1757045478216,-400.0,0.00028196,2]
[383626948,1757045478226,-312.70246558,0.00028196,2]
[383626949,1757045478235,-1000.0,0.000282,3]
[383626950,1757045478244,-1000.0,0.000282,3]
[383626951,1757045478254,-1000.0,0.000282,3]
[383626952,1757045478263,-1028.0,0.000282,3]
[383626953,1757045478272,-215.27686027,0.000282,3]
[383626954,1757045479094,-495.04782521,0.0002034,2]
[383626961,1757045866723,-472.0,0.00020335,2]
[383626962,1757045912173,175.0,0.00020335,2]
[383626963,1757045967725,-254.15312937,0.00020335,2]
[383626964,1757045967746,-358.66159117,0.00020335,2]
[383626965,1757045967770,-213.89441495,0.00020335,2]
[383626966,1757045967791,-184.01052545,0.00020335,2]
[383626967,1757045967814,-500.0,0.00020335,2]
[383626968,1757045967836,-500.0,0.00020335,2]
[383626969,1757045967859,-500.0,0.00020335,2]
[383626970,1757045967885,-500.0,0.00020335,2]
[383626971,1757045967908,-489.28033906,0.00020335,2]
[383626972,1757046058359,250.25,0.000118,2]
[383626973,1757046058555,250.25,0.00012421,2]
[383626974,1757046059026,250.25,0.00013042,2]
[383626975,1757046059237,250.25,0.00013663,2]
[383626976,1757046059443,250.25,0.00014284,2]
[383626977,1757046059676,250.25,0.00014905,2]
[383626978,1757046059872,250.25,0.00015526,2]
[383626979,1757046060074,250.25,0.00016147,2]
[383626980,1757046060289,250.25,0.00016768,2]
[383626981,1757046060483,250.25,0.00017389,2]
[383626982,1757046060674,250.25,0.0001801,2]
[383626983,1757046060901,250.25,0.00018631,2]
[383626984,1757046061115,250.25,0.00019252,2]
[383626985,1757046061328,250.25,0.00019873,2]
[383626989,1757046308816,156.28,0.00013699,2]
[383626991,1757046448293,5037.04728872,0.0002001,2]
[383626992,1757046504975,2000.0,0.000282,120]
[383626993,1757046505285,1338.728,0.000282,120]
[383626995,1757046510639,2731.96136017,0.0002001,2]
[383626996,1757046510666,3040.03863983,0.0002001,2]
[383627015,1757046632410,-200.0,0.00020321,2]
[383627016,1757046632420,-300.0,0.00020326,2]
[383627017,1757046632429,-1200.0,0.00020326,2]
[383627018,1757046632439,-300.40719056,0.00020326,2]
[383627019,1757046632449,-251.06311382,0.00020326,2]
[383627020,1757046632458,-500.0,0.00020328,2]
[383627021,1757046632467,-151.0,0.00020335,2]
[383627022,1757046632477,-175.13424173,0.00020336,2]
[383627023,1757046632486,-250.25,0.00020494,2]
[383627024,1757046632496,-250.25,0.00021115,2]
[383627025,1757046632508,-250.25,0.00021736,2]
[383627026,1757046632517,-21033.0132109,0.00022,2]
[383627027,1757046632529,-420.0,0.00022125,2]
[383627028,1757046632539,-411.32454259,0.00022256,2]
[383627029,1757046632549,-250.25,0.00022357,2]
[383627030,1757046632561,-159.93,0.00022603,2]
[383627031,1757046632570,-200.0,0.00022603,2]
[383627032,1757046632580,-317.02,0.00022603,2]
[383627033,1757046632589,-3358.24,0.00022603,2]
[383627034,1757046632599,-1852.42,0.00022603,2]
[383627035,1757046632609,-2933.25,0.00022845,2]
[383627036,1757046632619,-789.88,0.00022942,2]
[383627037,1757046632630,-363.49,0.00022966,2]
[383627039,1757046632639,-250.25,0.00022978,2]
[383627040,1757046632649,-12614.81,0.00023042,2]
[383627041,1757046632658,-160.0,0.00023163,7]
[383627042,1757046632667,-944.8,0.00023202,2]
[383627043,1757046632678,-376.17,0.00023202,2]
[383627044,1757046632687,-196.43,0.00023281,2]
[383627045,1757046632697,-3010.69135387,0.00023353,2]
[383627046,1757046632705,-250.25,0.00023599,2]
[383627047,1757046632718,-150.0,0.00023647,4]
[383627048,1757046632727,-150.0,0.00023647,4]
[383627049,1757046632735,-150.0,0.00023647,4]
[383627050,1757046632744,-150.0,0.00023647,4]
[383627051,1757046632753,-150.0,0.00023647,4]
[383627052,1757046632763,-150.0,0.00023647,4]
[383627053,1757046632773,-152.79454901,0.00023647,4]
[383627054,1757046632783,-152.87869039,0.00023647,4]
[383627055,1757046632792,-150.748105,0.00023647,4]
[383627056,1757046632801,-150.0,0.00023647,4]
[383627062,1757046633051,-150.00000001,0.00023647,4]
[383627063,1757046633061,-150.0,0.00023647,4]
[383627064,1757046633072,-163.95,0.00023726,2]
[383627065,1757046633082,-1013.76697393,0.00023799,2]
[383627066,1757046633095,-1794.37,0.00023801,2]
[383627067,1757046633106,-156.28,0.00023973,2]
[383627068,1757046633116,-200.0,0.00023981,2]
[383627069,1757046633126,-951.57,0.00024057,2]
[383627070,1757046633136,-2259.03,0.00024073,2]
[383627071,1757046633147,-363.49,0.00024114,2]
[383627072,1757046633157,-3117.55705084,0.00024227,2]
[383627073,1757046633167,-151.82956824,0.00024227,2]
[383627074,1757046633176,-160.0,0.00024227,2]
[383627076,1757046633186,-695.39793187,0.00024227,2]
[383627078,1757046633196,-322.6107,0.00024227,2]
[383627080,1757046633206,-257.91778498,0.00024227,2]
[383627082,1757046633216,-250.0,0.00024514,2]
[383627084,1757046633226,-2908.50811235,0.00024588,2]
[383627086,1757046633236,-9809.45975733,0.00024632,2]
[383627089,1757046633248,-5147.08889115,0.00024632,2]
[383627091,1757046633259,-803.51,0.00024632,2]
[383627093,1757046633270,-1178.9100274,0.00024632,2]
[383627102,1757046633345,-333.00496497,0.00020325,2]
[383627108,1757046633389,-166.99503503,0.00020325,2]
[383627110,1757046633398,-500.0,0.00020325,2]
[383627112,1757046633407,-500.0,0.00020325,2]
[383627114,1757046633417,-500.0,0.00020325,2]
[383627116,1757046633426,-4223.65193866,0.00024632,2]
[383627117,1757046633435,-3582.05055879,0.00024646,2]
[383627120,1757046633444,-400.0,0.00024657,2]
[383627122,1757046633454,-193.96136292,0.00024657,2]
[383627124,1757046633464,-400.0,0.00024657,2]
[383627126,1757046633474,-400.0,0.00024657,2]
[383627128,1757046633483,-400.0,0.00024657,2]
[383627129,1757046633492,-400.0,0.00024657,2]
[383627131,1757046633502,-400.0,0.00024657,2]
[383627133,1757046633511,-400.0,0.00024657,2]
[383627136,1757046633523,-400.0,0.00024657,2]
[383627138,1757046633532,-400.0,0.00024657,2]
[383627139,1757046633541,-400.0,0.00024657,2]
[383627142,1757046633553,-407.76634399,0.00024657,2]
[383627144,1757046633562,-400.0,0.00024657,2]
[383627146,1757046633571,-400.0,0.00024657,2]
[383627148,1757046633580,-400.0,0.00024657,2]
[383627150,1757046633589,-400.0,0.00024657,2]
[383627152,1757046633598,-493.77,0.00024657,2]
[383627154,1757046633608,-400.0,0.00024657,2]
[383627156,1757046633617,-400.0,0.00024657,2]
[383627158,1757046633626,-274.1047606,0.00024657,2]
[383627160,1757046633638,-125.8952394,0.00024657,2]
[383627162,1757046633647,-400.0,0.00024657,2]
[383627164,1757046633656,-400.0,0.00024657,2]
[383627166,1757046633666,-400.0,0.00024657,2]
[383627168,1757046633675,-400.0,0.00024657,2]
[383627170,1757046633684,-400.0,0.00024657,2]
[383627172,1757046633693,-490.74,0.00024657,2]
[383627174,1757046633702,-412.62,0.00024657,2]
[383627176,1757046633711,-400.0,0.00024657,2]
[383627178,1757046633720,-400.0,0.00024657,2]
[383627180,1757046633730,-286.56651761,0.00024657,2]
[383627185,1757046633767,-500.0,0.00020325,2]
[383627187,1757046633777,-500.0,0.00020325,2]
[383627189,1757046633786,-113.43348239,0.00024657,2]
[383627191,1757046633795,-400.0,0.00024657,2]
[383627193,1757046633804,-180.39202869,0.00024657,2]
[383627197,1757046633834,-219.60797131,0.00024657,2]
[383627199,1757046633844,-400.0,0.00024657,2]
[383627201,1757046633853,-461.83,0.00024657,2]
[383627203,1757046633863,-400.0,0.00024657,2]
[383627205,1757046633873,-400.0,0.00024657,2]
[383627207,1757046633882,-400.0,0.00024657,2]
[383627209,1757046633893,-404.82752372,0.00024657,2]
[383627211,1757046633902,-400.0,0.00024657,2]
[383627213,1757046633912,-403.34,0.00024657,2]
[383627215,1757046633921,-400.0,0.00024657,2]
[383627217,1757046633930,-400.0,0.00024657,2]
[383627219,1757046633940,-400.0,0.00024657,2]
[383627221,1757046633949,-400.0,0.00024657,2]
[383627223,1757046633958,-400.0,0.00024657,2]
[383627225,1757046633968,-400.0,0.00024657,2]
[383627227,1757046633977,-452.59752962,0.00024657,2]
[383627229,1757046633986,-165.19707018,0.00024657,2]
[383627231,1757046633997,-410.08289279,0.00024657,2]
[383627233,1757046634007,-353.82678215,0.00024657,2]
[383627236,1757046634018,-94.76555323,0.00024657,2]
[383627238,1757046634028,-400.0,0.00024657,2]
[383627240,1757046634037,-400.0,0.00024657,2]
[383627242,1757046634046,-400.0,0.00024657,2]
[383627244,1757046634055,-400.0,0.00024657,2]
[383627246,1757046634065,-400.0,0.00024657,2]
[383627248,1757046634074,-400.0,0.00024657,2]
[383627250,1757046634084,-413.18282881,0.00024657,2]
[383627252,1757046634093,-68.8788063,0.00024657,2]
[383627254,1757046634105,-331.1211937,0.00024657,2]
[383627256,1757046634114,-400.0,0.00024657,2]
[383627258,1757046634124,-500.0,0.00024657,2]
[383627260,1757046634133,-400.0,0.00024657,2]
[383627262,1757046634142,-260.03674647,0.00024657,2]
[383627264,1757046634153,-139.96325353,0.00024657,2]
[383627266,1757046634163,-400.0,0.00024657,2]
[383627268,1757046634172,-435.84439791,0.00024657,2]
[383627270,1757046634181,-434.95533869,0.00024657,2]
[383627272,1757046634190,-400.0,0.00024657,2]
[383627274,1757046634199,-400.0,0.00024657,2]
[383627276,1757046634208,-400.0,0.00024657,2]
[383627278,1757046634218,-169.49677861,0.00024657,2]
[383627280,1757046634231,-230.50322139,0.00024657,2]
[383627282,1757046634241,-400.0,0.00024657,2]
[383627284,1757046634251,-400.0,0.00024657,2]
[383627286,1757046634261,-400.0,0.00024657,2]
[383627288,1757046634271,-400.0,0.00024657,2]
[383627290,1757046634280,-500.0,0.00024657,2]
[383627292,1757046634289,-482.56,0.00024657,2]
[383627294,1757046634298,-400.0,0.00024657,2]
[383627296,1757046634308,-400.0,0.00024657,2]
[383627298,1757046634317,-1119.29,0.00024657,2]
[383627300,1757046634326,-400.0,0.00024657,2]
[383627302,1757046634335,-400.0,0.00024657,2]
[383627304,1757046634347,-1555.65,0.00024658,2]
[383627306,1757046634357,-500.0,0.00024673,2]
[383627308,1757046634366,-557.30571375,0.00024787,5]
[383627310,1757046634377,-500.0,0.00024797,2]
[383627312,1757046634386,-332.05988095,0.00024797,2]
[383627315,1757046634395,-13589.86439569,0.00024797,2]
[383627317,1757046634405,-403.36050228,0.00024798,2]
[383627318,1757046634414,-402.17510455,0.00024798,2]
[383627321,1757046634424,-400.0,0.00024798,2]
[383627323,1757046634433,-400.0,0.00024798,2]
[383627325,1757046634442,-400.0,0.00024798,2]
[383627326,1757046634451,-400.0,0.00024798,2]
[383627328,1757046634460,-400.0,0.00024798,2]
[383627330,1757046634470,-400.0,0.00024798,2]
[383627332,1757046634480,-400.0,0.00024798,2]
[383627334,1757046634490,-400.0,0.00024798,2]
[383627336,1757046634499,-400.0,0.00024798,2]
[383627338,1757046634509,-400.0,0.00024798,2]
[383627340,1757046634520,-400.0,0.00024798,2]
[383627342,1757046634532,-400.0,0.00024798,2]
[383627344,1757046634541,-406.17768227,0.00024798,2]
[383627346,1757046634550,-400.0,0.00024798,2]
[383627348,1757046634559,-411.96454226,0.00024798,2]
[383627350,1757046634570,-400.0,0.00024798,2]
[383627352,1757046634580,-410.08903714,0.00024798,2]
[383627354,1757046634589,-410.91303889,0.00024798,2]
[383627356,1757046634600,-477.59877926,0.00024798,2]
[383627358,1757046634610,-400.0,0.00024798,2]
[383627360,1757046634619,-411.63919384,0.00024798,2]
[383627362,1757046634629,-403.82758838,0.00024798,2]
[383627364,1757046634638,-400.0,0.00024798,2]
[383627366,1757046634647,-402.1215454,0.00024798,2]
[383627368,1757046634656,-400.0,0.00024798,2]
[383627370,1757046634666,-400.0,0.00024798,2]
[383627372,1757046634676,-400.0,0.00024798,2]
[383627374,1757046634685,-418.15839468,0.00024798,2]
[383627376,1757046634695,-500.0,0.00024873,2]
[383627378,1757046634704,-1154.56129618,0.0002488,7]
[383627380,1757046634715,-372.91,0.00024886,2]
[383627382,1757046634724,-23274.6938266,0.00024887,3]
[383627384,1757046634733,-400.0,0.00024895,2]
[383627386,1757046634744,-400.0,0.00024895,2]
[383627388,1757046634753,-400.0,0.00024895,2]
[383627390,1757046634762,-400.0,0.00024895,2]
[383627392,1757046634771,-400.0,0.00024895,2]
[383627394,1757046634781,-182.07366,0.00024895,2]
[383627396,1757046634790,-154.451957,0.00024895,2]
[383627398,1757046634800,-400.0,0.00024895,2]
[383627400,1757046634809,-510.52,0.00024895,2]
[383627402,1757046634818,-726.74,0.00024895,2]
[383627404,1757046634828,-400.0,0.00024895,2]
[383627406,1757046634837,-403.75608153,0.00024895,2]
[383627408,1757046634847,-400.0,0.00024895,2]
[383627410,1757046634856,-400.0,0.00024895,2]
[383627412,1757046634866,-400.0,0.00024895,2]
[383627414,1757046634875,-1063.0,0.00024895,2]
[383627416,1757046634885,-640.58,0.00024895,2]
[383627418,1757046634895,-400.0,0.00024895,2]
[383627421,1757046634913,-337.6664715,0.00024895,2]
[383627423,1757046634924,-323.92818328,0.00024895,2]
[383627425,1757046634934,-400.0,0.00024895,2]
[383627427,1757046634945,-400.0,0.00024895,2]
[383627429,1757046634955,-400.0,0.00024895,2]
[383627432,1757046634965,-400.0,0.00024895,2]
[383627434,1757046634975,-400.0,0.00024895,2]
[383627436,1757046634985,-400.0,0.00024895,2]
[383627438,1757046634995,-400.0,0.00024895,2]
[383627440,1757046635004,-400.0,0.00024895,2]
[383627442,1757046635014,-400.0,0.00024895,2]
[383627444,1757046635023,-400.0,0.00024895,2]
[383627446,1757046635032,-400.0,0.00024895,2]
[383627448,1757046635041,-400.0,0.00024895,2]
[383627450,1757046635051,-400.0,0.00024895,2]
[383627452,1757046635060,-400.0,0.00024895,2]
[383627454,1757046635069,-400.0,0.00024895,2]
[383627456,1757046635078,-400.0,0.00024895,2]
[383627458,1757046635087,-498.22,0.00024895,2]
[383627460,1757046635097,-405.05346748,0.00024895,2]
[383627462,1757046635109,-400.0,0.00024895,2]
[383627464,1757046635124,-400.0,0.00024895,2]
[383627466,1757046635134,-400.0,0.00024895,2]
[383627468,1757046635143,-400.0,0.00024895,2]
[383627470,1757046635152,-337.37421412,0.00024895,2]
[383627472,1757046635161,-400.0,0.00024895,2]
[383627474,1757046635170,-400.0,0.00024895,2]
[383627476,1757046635180,-400.0,0.00024895,2]
[383627478,1757046635190,-400.0,0.00024895,2]
[383627480,1757046635199,-400.0,0.00024895,2]
[383627482,1757046635209,-214.87703552,0.00024895,2]
[383627484,1757046635218,-400.0,0.00024895,2]
[383627486,1757046635229,-400.0,0.00024895,2]
[383627488,1757046635240,-400.0,0.00024895,2]
[383627490,1757046635250,-400.0,0.00024895,2]
[383627492,1757046635259,-400.0,0.00024895,2]
[383627494,1757046635270,-400.0,0.00024895,2]
[383627496,1757046635279,-479.51,0.00024895,2]
[383627498,1757046635289,-400.0,0.00024895,2]
[383627500,1757046635299,-253.56776239,0.00024895,2]
[383627502,1757046635308,-400.0,0.00024895,2]
[383627504,1757046635318,-400.0,0.00024895,2]
[383627506,1757046635327,-422.17032319,0.00024895,2]
[383627508,1757046635336,-116.98387287,0.00024895,2]
[383627511,1757046635350,-305.8930974,0.00024895,2]
[383627513,1757046635360,-400.0,0.00024895,2]
[383627515,1757046635369,-370.78062203,0.00024895,2]
[383627517,1757046635378,-257.29351329,0.00024895,2]
[383627521,1757046635418,-471.08336379,0.00020325,2]
[383627522,1757046635430,-28.91663621,0.00020325,2]
[383627523,1757046635440,-142.70648671,0.00024895,2]
[383627524,1757046635449,-224.42682745,0.00024895,2]
[383627525,1757046635459,-476.96565594,0.00024895,2]
[383627798,1757046638289,-500.0,0.00020325,2]
[383627799,1757046638298,-500.0,0.00020325,2]
[383627800,1757046638307,-500.0,0.00020325,2]
[383627801,1757046638316,-500.0,0.00020325,2]
[383627802,1757046638326,-574.65222936,0.00020325,2]
[383627803,1757046638342,-500.0,0.00020325,2]
[383627804,1757046638352,-500.0,0.00020325,2]
[383627805,1757046638360,-500.0,0.00020325,2]
[383627806,1757046638370,-500.0,0.00020325,2]
[383627807,1757046638380,-500.0,0.00020325,2]
[383627808,1757046638390,-500.0,0.00020325,2]
[383627809,1757046638399,-500.0,0.00020325,2]
[383627810,1757046638409,-173.65578048,0.00020325,2]
[383627963,1757046640444,-326.34421952,0.00020325,2]
[383627965,1757046640453,-500.0,0.00020325,2]
[383627967,1757046640462,-500.0,0.00020325,2]
[383627969,1757046640472,-500.0,0.00020325,2]
[383627971,1757046640481,-500.0,0.00020325,2]
[383627973,1757046640490,-500.0,0.00020325,2]
[383627976,1757046640505,-500.0,0.00020325,2]
[383627978,1757046640514,-500.0,0.00020325,2]
[383628004,1757046640744,-500.0,0.00020325,2]
[383628006,1757046640754,-500.0,0.00020325,2]
[383628008,1757046640763,-500.0,0.00020325,2]
[383628010,1757046640773,-500.0,0.00020325,2]
[383628012,1757046640782,-226.34,0.00022495,2]
[383628014,1757046640791,-293.95,0.00022495,2]
[383628016,1757046640800,-226.34,0.00024392,2]
[383628017,1757046640809,-293.95,0.00024392,2]
[383628020,1757046640820,-223.33794326,0.00024657,2]
[383628021,1757046640829,-2219.50434406,0.00024895,2]
[383628024,1757046640838,-400.0,0.00024895,2]
[383628026,1757046640848,-216.382572,0.00024895,2]
[383628028,1757046640858,-400.0,0.00024895,2]
[383628029,1757046640867,-406.61,0.00024895,2]
[383628032,1757046640877,-452.99855144,0.00024895,2]
[383628033,1757046640886,-400.0,0.00024895,2]
[383628035,1757046640895,-400.0,0.00024895,2]
[383628037,1757046640904,-400.0,0.00024895,2]
[383628039,1757046640914,-400.0,0.00024895,2]
[383628041,1757046640923,-400.0,0.00024895,2]
[383628043,1757046640932,-400.0,0.00024895,2]
[383628045,1757046640941,-400.0,0.00024895,2]
[383628047,1757046640951,-476.75,0.00024895,2]
[383628050,1757046640961,-400.0,0.00024895,2]
[383628051,1757046640970,-405.42154558,0.00024895,2]
[383628053,1757046640979,-412.56220106,0.00024895,2]
[383628056,1757046640989,-400.0,0.00024895,2]
[383628058,1757046640999,-400.0,0.00024895,2]
[383628059,1757046641009,-400.0,0.00024895,2]
[383628061,1757046641018,-238.12406613,0.00024895,2]
[383628064,1757046641028,-400.0,0.00024895,2]
[383628066,1757046641037,-400.0,0.00024896,2]
[383628068,1757046641046,-400.0,0.00024896,2]
[383628070,1757046641055,-400.0,0.00024896,2]
[383628072,1757046641064,-405.06121085,0.00024896,2]
[383628074,1757046641074,-400.0,0.00024896,2]
[383628076,1757046641083,-402.55207713,0.00024896,2]
[383628078,1757046641092,-400.0,0.00024896,2]
[383628080,1757046641101,-400.0,0.00024896,2]
[383628082,1757046641110,-400.0,0.00024896,2]
[383628084,1757046641119,-400.0,0.00024896,2]
[383628086,1757046641129,-400.0,0.00024896,2]
[383628088,1757046641138,-400.0,0.00024896,2]
[383628090,1757046641148,-400.0,0.00024896,2]
[383628092,1757046641157,-400.0,0.00024896,2]
[383628094,1757046641166,-400.0,0.00024896,2]
[383628095,1757046641175,-400.0,0.00024896,2]
[383628097,1757046641185,-400.0,0.00024896,2]
[383628099,1757046641194,-400.0,0.00024896,2]
[383628101,1757046641203,-400.0,0.00024896,2]
[383628103,1757046641212,-400.0,0.00024896,2]
[383628105,1757046641222,-400.0,0.00024896,2]
[383628107,1757046641231,-400.0,0.00024896,2]
[383628109,1757046641240,-400.0,0.00024896,2]
[383628112,1757046641250,-400.0,0.00024896,2]
[383628113,1757046641259,-400.0,0.00024896,2]
[383628115,1757046641268,-400.0,0.00024896,2]
[383628117,1757046641277,-400.0,0.00024896,2]
[383628119,1757046641287,-400.0,0.00024896,2]
[383628122,1757046641296,-400.0,0.00024896,2]
[383628123,1757046641306,-400.0,0.00024896,2]
[383628125,1757046641315,-400.0,0.00024896,2]
[383628128,1757046641329,-400.0,0.00024896,2]
[383628130,1757046641338,-400.0,0.00024896,2]
[383628132,1757046641348,-400.0,0.00024896,2]
[383628134,1757046641358,-437.63758199,0.00024896,2]
[383628136,1757046641367,-400.0,0.00024896,2]
[383628138,1757046641376,-400.0,0.00024896,2]
[383628140,1757046641386,-400.0,0.00024896,2]
[383628142,1757046641395,-400.0,0.00024896,2]
[383628144,1757046641405,-163.01555817,0.00024896,2]
[383628146,1757046641414,-400.0,0.00024896,2]
[383628148,1757046641424,-400.0,0.00024896,2]
[383628150,1757046641433,-400.0,0.00024896,2]
[383628152,1757046641443,-400.0,0.00024896,2]
[383628154,1757046641453,-400.0,0.00024896,2]
[383628156,1757046641463,-400.0,0.00024896,2]
[383628158,1757046641471,-400.0,0.00024896,2]
[383628160,1757046641480,-400.0,0.00024896,2]
[383628162,1757046641490,-400.0,0.00024896,2]
[383628164,1757046641499,-470.20751668,0.00024896,2]
[383628166,1757046641509,-400.0,0.00024896,2]
[383628168,1757046641519,-400.0,0.00024896,2]
[383628170,1757046641531,-400.0,0.00024896,2]
[383628171,1757046641541,-500.0,0.00024896,2]
[383628172,1757046641550,-402.28628743,0.00024896,2]